bitfinex-derivatives/quotes_SOLF0:USTF0_20241021
["timestamp","ask_amount","ask_price","bid_price","bid_amount"]
[1729480483349,4.92,168.59,168.51,2.6491]
[1729480484148,2.9664,168.58,168.51,2.6491]
[1729480485344,4.92,168.59,168.51,2.6491]
[1729480486055,2.9668,168.56,168.51,2.6491]
[1729480486356,4.92,168.59,168.51,2.6491]
[1729480486559,2.9667,168.57,168.51,2.6491]
[1729480487354,4.92,168.59,168.51,2.6491]
[1729480488452,17.72,168.64,168.51,2.6491]
[1729480488654,17.72,168.62,168.45,2.37549365]
[1729480488860,17.72,168.6,168.43,3.03030002]
[1729480489055,0.87289923,168.59,168.44,3.97724185]
[1729480489354,4.92,168.58,168.48,2.968]
[1729480490058,4.92,168.58,168.44,5.39881463]
[1729480490257,2.9669,168.55,168.46,2.9683]
[1729480490654,2.9674,168.52,168.44,8.36741463]
[1729480490857,2.9674,168.52,168.44,13.28741463]
[1729480492455,2.9676,168.51,168.44,13.28741463]
[1729480494962,2.9678,168.5,168.44,13.28741463]
[1729480496058,2.9678,168.5,168.44,10.31881463]
[1729480496253,2.9676,168.51,168.44,10.31881463]
[1729480496459,4.92,168.54,168.44,10.31881463]
[1729480497461,2.9677,168.51,168.45,2.9685]
[1729480497763,2.9677,168.51,168.44,10.31881463]
[1729480498465,2.9677,168.51,168.47,2.9683]
[1729480499060,4.92,168.55,168.44,10.31881463]
[1729480499265,2.9674,168.52,168.44,10.31881463]
[1729480500968,1.01,168.61,168.44,10.31881463]
[1729480500969,2.9672,168.54,168.44,10.31881463]
[1729480501165,4.92,168.57,168.45,1.48477295]
[1729480501361,1.01,168.61,168.49,2.9679]
[1729480501557,4.92,168.6,168.49,2.9679]
[1729480502067,2.967,168.55,168.49,2.9679]
[1729480502368,4.92,168.58,168.49,1.2995]
[1729480502568,2.9668,168.56,168.49,1.2995]
[1729480502767,4.92,168.58,168.49,1.2995]
[1729480503268,2.9675,168.52,168.46,2.9684]
[1729480504869,1.01,168.61,168.45,6.2195]
[1729480505066,5.04,168.6,168.46,1.48488148]
[1729480505264,2.9672,168.53,168.47,8.0083]
[1729480505765,2.9671,168.54,168.47,8.0083]
[1729480506163,1.01,168.61,168.46,5.04]
[1729480506363,2.9674,168.53,168.46,5.04]
[1729480506767,2.9674,168.53,168.46,8.0084]
[1729480507273,5.04,168.55,168.46,5.04]
[1729480507465,5.04,168.55,168.47,2.9681]
[1729480507772,5.04,168.55,168.45,1.2995]
[1729480507974,5.04,168.55,168.44,4.17051463]
[1729480508163,1.0121,168.54,168.44,4.17051463]
[1729480508365,2.9676,168.51,168.44,4.17051463]
[1729480508668,5.04,168.51,168.44,4.17051463]
[1729480508965,1.0121,168.54,168.44,4.17051463]
[1729480509167,2.9681,168.48,168.44,4.17051463]
[1729480509366,22.76,168.53,168.41,1.2335]
[1729480510471,22.76,168.53,168.36,6.2735]
[1729480510663,2.9688,168.44,168.36,6.2735]
[1729480511268,2.9693,168.42,168.36,1.2335]
[1729480511463,5.04,168.45,168.36,1.2335]
[1729480512071,5.04,168.45,168.35,1.2943]
[1729480512671,2.9694,168.41,168.35,1.2943]
[1729480512866,5.04,168.45,168.35,1.2943]
[1729480513864,2.9695,168.41,168.35,1.2943]
[1729480514067,5.04,168.41,168.35,1.2943]
[1729480514871,8.0095,168.41,168.35,1.2943]
[1729480515370,5.04,168.41,168.35,1.2943]
[1729480515567,8.0095,168.41,168.35,1.2943]
[1729480515969,5.04,168.41,168.35,1.2943]
[1729480516173,2.9696,168.4,168.34,2.92423297]
[1729480516367,2.9696,168.4,168.32,1.289]
[1729480516868,2.9696,168.4,168.32,4.2599]
[1729480517674,2.9696,168.4,168.32,7.20979676]
[1729480518171,5.04,168.41,168.32,4.23889676]
[1729480518368,2.9697,168.39,168.32,4.23889676]
[1729480518569,5.04,168.41,168.32,4.23889676]
[1729480518776,1.0124,168.46,168.32,7.20969676]
[1729480518777,2.9692,168.42,168.32,7.20969676]
[1729480518972,2.9692,168.42,168.32,4.23889676]
[1729480519272,8.0092,168.42,168.32,4.23889676]
[1729480519667,8.0092,168.42,168.34,2.9706]
[1729480519868,5.04,168.42,168.34,2.9706]
[1729480520074,2.9694,168.41,168.34,2.9706]
[1729480525075,2.9695,168.4,168.33,2.9707]
[1729480525274,2.9695,168.4,168.34,2.97181805]
[1729480525471,5.04,168.43,168.32,4.23889676]
[1729480525773,5.04,168.43,168.33,5.34927791]
[1729480525978,5.04,168.43,168.34,2.97182106]
[1729480526174,5.04,168.43,168.32,4.23889676]
[1729480526377,5.04,168.43,168.33,5.34927428]
[1729480526571,5.04,168.43,168.34,2.97181904]
[1729480526780,5.04,168.43,168.32,4.23889676]
[1729480526982,2.9694,168.41,168.34,2.9705]
[1729480527979,5.04,168.43,168.35,1.48587633]
[1729480528178,2.9695,168.4,168.34,2.9705]
[1729480528378,2.9695,168.4,168.35,2.97174982]
[1729480528578,2.9695,168.4,168.34,2.9705]
[1729480528783,2.9695,168.4,168.32,7.20969676]
[1729480529081,2.9695,168.4,168.33,2.9719435]
[1729480529280,2.9695,168.4,168.34,1.48597175]
[1729480529485,2.9695,168.4,168.32,9.27889676]
[1729480529781,2.9695,168.4,168.33,2.97189518]
[1729480529985,2.9695,168.4,168.34,2.97189518]
[1729480530180,2.9695,168.4,168.33,2.9707]
[1729480530381,2.9695,168.4,168.34,2.97174754]
[1729480530579,2.9695,168.4,168.33,2.9707]
[1729480530780,2.9695,168.4,168.34,1.48587389]
[1729480530986,2.9695,168.4,168.33,2.9707]
[1729480531283,2.9695,168.4,168.34,2.971748]
[1729480531476,2.9695,168.4,168.33,2.9707]
[1729480531672,2.9695,168.4,168.34,2.97172667]
[1729480531886,2.9695,168.4,168.35,1.48586681]
[1729480532082,2.9695,168.4,168.33,2.9707]
[1729480533685,7.8287,168.45,168.38,2.9697]
[1729480533881,4.86,168.45,168.36,4.86]
[1729480534182,2.9682,168.48,168.42,2.969]
[1729480534384,4.86,168.49,168.42,2.94723783]
[1729480534582,3.03129888,168.65,168.4,4.86]
[1729480534583,4.86,168.51,168.41,1.2442]
[1729480534886,7.8275,168.52,168.45,2.9685]
[1729480535075,2.9675,168.52,168.45,2.9685]
[1729480535490,2.9675,168.52,168.45,4.2601]
[1729480535786,64.12,168.6,168.47,2.9683]
[1729480535982,4.86,168.59,168.48,4.86]
[1729480536179,1.0126,168.64,168.49,1.3325]
[1729480536385,2.9658,168.61,168.53,2.9672]
[1729480536575,4.86,168.63,168.52,4.86]
[1729480537975,4.86,168.63,168.49,1.3325]
[1729480538175,2.9668,168.56,168.49,1.3325]
[1729480538893,2.9665,168.57,168.49,1.3325]
[1729480539184,1.0126,168.64,168.49,1.3325]
[1729480539385,4.86,168.63,168.49,1.3325]
[1729480540281,2.9658,168.61,168.54,2.967]
[1729480540486,64.16,168.69,168.54,3.00107504]
[1729480540681,5.8726,168.68,168.53,4.86]
[1729480540882,4.86,168.67,168.54,2.5375]
[1729480541088,4.86,168.67,168.59,2.9661]
[1729480541278,4.86,168.69,168.58,4.86]
[1729480541477,4.86,168.69,168.59,6.1803]
[1729480541680,2.9646,168.68,168.6,2.966]
[1729480542484,2.9646,168.68,168.59,6.1803]
[1729480542485,4.86,168.69,168.59,6.1803]
[1729480542683,4.86,168.71,168.59,6.1803]
[1729480542887,4.86,168.72,168.59,6.1803]
[1729480543085,7.8239,168.72,168.64,2.9653]
[1729480543285,7.8239,168.72,168.65,1.334]
[1729480543487,4.86,168.72,168.65,4.26893719]
[1729480543786,7.8235,168.75,168.66,2.9649]
[1729480543992,4.86,168.75,168.66,2.9649]
[1729480544192,4.86,168.75,168.66,2.98837711]
[1729480544485,64.16,168.78,168.67,4.86]
[1729480544486,4.86,168.77,168.67,4.86]
[1729480544790,1.0126,168.83,168.68,1.2981]
[1729480544993,2.9631,168.77,168.69,2.9644]
[1729480545582,4.86,168.78,168.71,2.964]
[1729480546093,1.0126,168.83,168.72,2.9639]
[1729480546094,2.9624,168.81,168.72,2.9639]
[1729480546390,4.86,168.8,168.68,1.2981]
[1729480546791,2.963,168.77,168.69,2.9643]
[1729480546985,2.963,168.77,168.68,1.2981]
[1729480547894,4.86,168.8,168.68,1.2981]
[1729480548083,2.9637,168.73,168.68,1.2981]
[1729480548289,4.86,168.76,168.65,2.6881]
[1729480548485,4.86,168.75,168.65,10.51518202]
[1729480548794,2.9637,168.74,168.65,7.5481]
[1729480549188,7.8235,168.75,168.65,10.5132]
[1729480549393,7.8235,168.75,168.65,13.43549252]
[1729480550502,4.86,168.75,168.65,10.47039252]
[1729480550886,4.86,168.75,168.65,5.61039252]
[1729480551086,4.86,168.75,168.62,6.1243]
[1729480551291,1.0098,168.74,168.62,6.1243]
[1729480552196,2.9644,168.7,168.62,6.1243]
[1729480552391,7.8244,168.7,168.62,6.1243]
[1729480553505,4.86,168.71,168.62,6.1243]
[1729480553696,17.72,168.86,168.62,6.1243]
[1729480553993,2.9634,168.75,168.62,6.1243]
[1729480554201,4.86,168.76,168.62,6.1243]
[1729480554585,2.9634,168.75,168.67,2.9648]
[1729480554792,2.9634,168.75,168.67,10.80273022]
[1729480555304,4.86,168.76,168.67,7.83793022]
[1729480555495,2.9635,168.74,168.67,7.83793022]
[1729480555690,4.86,168.76,168.67,7.83793022]
[1729480555896,4.86,168.76,168.68,1.2822]
[1729480556895,2.9635,168.75,168.68,1.2822]
[1729480557797,4.86,168.76,168.68,1.2822]
[1729480558003,2.9636,168.74,168.68,1.2822]
[1729480558498,2.9633,168.76,168.69,2.9644]
[1729480559296,2.9626,168.8,168.73,2.9636]
[1729480559496,4.86,168.8,168.69,1.2282]
[1729480559897,4.86,168.8,168.7,1.3544]
[1729480560101,4.86,168.8,168.71,4.86]
[1729480560794,4.86,168.79,168.7,1.3544]
[1729480560993,4.86,168.78,168.7,1.3544]
[1729480562094,4.86,168.78,168.67,2.97793022]
[1729480562300,4.86,168.78,168.64,1.3198]
[1729480562494,1.0089,168.77,168.65,4.86]
[1729480562901,2.9639,168.73,168.65,4.86]
[1729480563200,1.0089,168.77,168.65,4.86]
[1729480563794,1.0089,168.77,168.64,4.23984299]
[1729480563795,1.0089,168.77,168.64,2.92004299]
[1729480563995,2.9644,168.7,168.63,7.4164]
[1729480564597,2.9644,168.7,168.63,10.42922216]
[1729480564998,2.9637,168.73,168.63,10.42922216]
[1729480565199,7.7637,168.73,168.63,10.42922216]
[1729480565401,2.9637,168.73,168.63,10.42922216]
[1729480565603,2.9637,168.73,168.66,2.9648]
[1729480566191,2.9637,168.73,168.67,2.9648]
[1729480567202,2.9644,168.7,168.63,10.42922216]
[1729480567407,4.8,168.75,168.63,10.42922216]
[1729480567604,2.9637,168.74,168.68,2.9645]
[1729480568500,1.0091,168.85,168.67,4.8]
[1729480568696,22.52,168.84,168.67,4.8]
[1729480568896,2.9632,168.77,168.7,2.9642]
[1729480570099,2.9632,168.77,168.71,2.5816]
[1729480570803,1.0091,168.85,168.72,2.9638]
[1729480570804,2.9628,168.79,168.72,2.9638]
[1729480571108,1.0091,168.85,168.71,7.3816]
[1729480571407,4.8,168.84,168.71,7.3816]
[1729480571607,2.9622,168.82,168.74,2.9634]
[1729480571906,2.9622,168.82,168.74,2.94810023]
[1729480572204,4.8,168.84,168.75,4.8]
[1729480574607,2.9621,168.83,168.75,7.7633]
[1729480574806,4.8,168.84,168.75,4.8]
[1729480575006,7.7618,168.84,168.77,2.9629]
[1729480575708,2.9616,168.86,168.76,1.2489]
[1729480575900,4.8,168.89,168.76,1.2489]
[1729480576107,4.8,168.88,168.76,1.2489]
[1729480576511,2.9617,168.85,168.78,2.9628]
[1729480577206,2.9617,168.85,168.78,4.8]
[1729480577504,4.8,168.88,168.78,4.8]
[1729480578499,2.9619,168.84,168.78,4.8]
[1729480579099,2.9621,168.83,168.76,4.2121]
[1729480579299,4.8,168.88,168.77,4.8]
[1729480579500,4.8,168.88,168.76,1.2489]
[1729480579702,1.0075,168.87,168.76,1.2489]
[1729480581017,2.9621,168.83,168.76,1.2489]
[1729480582213,4.8,168.84,168.75,4.8]
[1729480582413,4.8,168.84,168.74,3.02995895]
[1729480582610,4.8,168.84,168.73,4.8]
[1729480583213,4.8,168.84,168.73,2.91846554]
[1729480583413,4.8,168.84,168.73,4.8]
[1729480584019,4.8,168.84,168.74,1.2408]
[1729480584314,7.7619,168.84,168.77,2.963]
[1729480585017,2.962,168.83,168.78,2.495]
[1729480585810,2.9622,168.82,168.78,2.495]
[1729480587406,2.9625,168.81,168.74,4.2042]
[1729480587614,4.8,168.84,168.73,7.3836]
[1729480588415,2.9625,168.8,168.74,2.9635]
[1729480588715,4.8,168.84,168.74,1.245]
[1729480589416,2.9622,168.82,168.76,2.9632]
[1729480592011,4.8,168.84,168.74,1.245]
[1729480592421,2.9627,168.79,168.74,1.245]
[1729480593023,2.9627,168.79,168.74,4.2085]
[1729480593424,4.8,168.84,168.74,1.245]
[1729480593630,2.9627,168.79,168.74,4.2085]
[1729480594121,2.9627,168.79,168.74,1.245]
[1729480594326,2.963,168.78,168.74,4.66]
[1729480595017,2.9628,168.79,168.74,4.66]
[1729480598222,4.8,168.84,168.74,4.66]
[1729480598223,2.9625,168.81,168.75,2.9633]
[1729480598433,4.8,168.84,168.74,4.66]
[1729480598624,4.66,168.83,168.74,4.66]
[1729480599927,2.9625,168.8,168.74,7.6235]
[1729480600529,4.66,168.83,168.74,4.66]
[1729480600732,4.66,168.85,168.74,4.66]
[1729480601238,2.962,168.83,168.76,2.963]
[1729480601435,2.962,168.83,168.74,4.66]
[1729480602042,4.66,168.85,168.74,4.66]
[1729480602335,2.9622,168.82,168.74,4.66]
[1729480602527,4.66,168.85,168.74,4.66]
[1729480602730,2.9623,168.81,168.76,2.9632]
[1729480605146,4.66,168.85,168.74,4.66]
[1729480605446,2.9629,168.78,168.74,4.66]
[1729480605845,2.9629,168.78,168.74,7.6235]
[1729480606647,2.9627,168.79,168.74,7.6235]
[1729480608542,4.66,168.85,168.75,2.9633]
[1729480608543,2.9625,168.81,168.75,2.9633]
[1729480608742,4.66,168.85,168.74,4.66]
[1729480609544,2.9622,168.82,168.76,2.963]
[1729480609747,4.66,168.85,168.74,4.66]
[1729480610947,2.962,168.83,168.77,2.9629]
[1729480611649,2.962,168.83,168.74,4.66]
[1729480611847,2.962,168.83,168.76,2.9631]
[1729480613450,2.962,168.83,168.74,4.66]
[1729480613451,4.66,168.85,168.74,4.66]
[1729480613654,2.9618,168.84,168.77,2.9629]
[1729480615654,2.962,168.83,168.77,2.9629]
[1729480616249,4.66,168.85,168.74,4.66]
[1729480616456,4.66,168.85,168.73,3.9079]
[1729480616642,4.66,168.85,168.73,8.5679]
[1729480617049,2.9626,168.8,168.73,8.5679]
[1729480618447,2.9626,168.8,168.73,11.5315]
[1729480619352,2.9623,168.81,168.75,2.9633]
[1729480620153,4.66,168.84,168.73,8.5679]
[1729480620357,4.66,168.84,168.74,1.48261653]
[1729480620655,2.962,168.83,168.77,2.963]
[1729480620853,2.962,168.83,168.77,7.623]
[1729480621252,2.962,168.83,168.77,4.66]
[1729480623044,2.9618,168.84,168.77,7.623]
[1729480623250,4.52,168.89,168.77,4.66]
[1729480623654,4.52,168.89,168.78,2.9628]
[1729480623856,1.0067,168.92,168.77,4.66]
[1729480624057,4.52,168.91,168.77,4.66]
[1729480625356,4.52,168.91,168.78,1.48227866]
[1729480625661,4.52,168.91,168.77,4.66]
[1729480625864,2.9617,168.85,168.78,4.4450787]
[1729480626062,2.9617,168.85,168.78,2.9628]
[1729480626559,1.0067,168.92,168.73,3.9079]
[1729480626754,4.52,168.91,168.75,2.9632]
[1729480627150,4.52,168.91,168.76,1.4824585]
[1729480627351,2.9621,168.83,168.75,2.9632]
[1729480627553,2.9621,168.83,168.76,1.48247481]
[1729480627750,4.52,168.86,168.74,5.8144]
[1729480627957,2.9625,168.8,168.74,1.2944]
[1729480628251,4.52,168.86,168.75,4.52]
[1729480629257,2.9622,168.82,168.75,4.52]
[1729480629656,2.962,168.83,168.76,2.9631]
[1729480630559,2.962,168.83,168.75,4.52]
[1729480630759,2.9622,168.82,168.76,6.00247246]
[1729480631065,4.52,168.86,168.76,4.52]
[1729480631962,2.9624,168.81,168.76,4.52]
[1729480632164,4.52,168.86,168.76,4.52]
[1729480632464,2.9614,168.87,168.77,1.48245526]
[1729480632668,4.52,168.89,168.78,2.9647868]
[1729480632854,4.52,168.89,168.79,1.48245526]
[1729480633168,4.52,168.89,168.8,8.60625526]
[1729480633360,2.9613,168.87,168.81,4.52]
[1729480633965,2.9613,168.87,168.81,7.45264635]
[1729480634372,2.9613,168.87,168.81,8.69354635]
[1729480636065,2.9615,168.86,168.81,8.69354635]
[1729480636963,2.9616,168.85,168.81,8.69354635]
[1729480638062,4.52,168.9,168.81,4.17354635]
[1729480638269,4.52,168.9,168.81,2.93264635]
[1729480638462,4.52,168.9,168.8,1.2489]
[1729480638659,2.9619,168.84,168.8,1.2489]
[1729480640474,2.9615,168.86,168.8,1.2489]
[1729480640776,2.9615,168.86,168.81,1.48228143]
[1729480640966,2.9615,168.86,168.81,2.99318606]
[1729480641272,2.9615,168.86,168.8,2.5033]
[1729480641474,2.9615,168.86,168.81,1.48220175]
[1729480641768,2.9618,168.84,168.81,2.89003408]
[1729480641972,2.9618,168.84,168.8,2.5033]
[1729480642562,4.52,168.9,168.8,2.5033]
[1729480642771,2.962,168.83,168.8,2.5033]
[1729480645177,1.0067,168.92,168.81,1.48226047]
[1729480645471,4.52,168.89,168.81,2.96751887]
[1729480645775,4.52,168.91,168.82,1.48218815]
[1729480645969,4.52,168.91,168.82,2.90200877]
[1729480646171,4.52,168.91,168.8,2.5033]
[1729480646367,4.52,168.91,168.81,2.96436206]
[1729480646571,4.52,168.91,168.82,1.48218103]
[1729480646874,2.9611,168.88,168.81,2.9623]
[1729480647072,2.9611,168.88,168.82,1.48217449]
[1729480647278,2.9611,168.88,168.81,5.90432625]
[1729480647469,2.9611,168.88,168.82,1.48217449]
[1729480647670,2.9611,168.88,168.81,5.90432625]
[1729480648071,2.9611,168.88,168.82,1.48216755]
[1729480648280,2.9611,168.88,168.81,5.90432625]
[1729480648680,2.9615,168.86,168.82,1.48216755]
[1729480648979,2.9615,168.86,168.8,5.4658]
[1729480649276,2.9615,168.86,168.81,1.48219493]
[1729480649478,2.9615,168.86,168.81,3.00610833]
[1729480649675,2.9615,168.86,168.8,5.4658]
[1729480649875,2.9615,168.86,168.81,1.48220704]
[1729480650078,2.9615,168.86,168.81,2.90298079]
[1729480650280,2.9615,168.86,168.8,5.4658]
[1729480650476,2.9611,168.89,168.81,4.44448281]
[1729480650780,5.3,168.98,168.82,2.96417479]
[1729480651078,2.9604,168.92,168.85,2.9616]
[1729480651281,2.9604,168.92,168.86,1.2286]
[1729480653279,2.9601,168.94,168.86,4.1899]
[1729480653584,5.3,168.98,168.86,4.1899]
[1729480653983,2.9605,168.92,168.86,1.2286]
[1729480654381,5.3,168.93,168.85,3.03011215]
[1729480654583,2.9613,168.87,168.8,2.5033]
[1729480656389,1.0057,168.91,168.74,1.2432]
[1729480656593,1.0057,168.91,168.75,13.22667929]
[1729480656892,1.0057,168.91,168.76,5.33627929]
[1729480657195,1.0057,168.91,168.77,8.2645903]
[1729480657393,1.0057,168.91,168.77,5.3]
[1729480658793,1.0057,168.91,168.75,2.5904]
[1729480658989,1.0057,168.91,168.76,2.96482394]
[1729480659194,2.9623,168.81,168.75,7.8904]
[1729480659389,2.9623,168.81,168.76,1.48249265]
[1729480659589,2.9623,168.81,168.75,7.8904]
[1729480659987,2.9621,168.82,168.75,7.8904]
[1729480660795,2.9624,168.81,168.75,7.8904]
[1729480661298,5.3,168.85,168.75,7.8904]
[1729480661491,5.3,168.87,168.76,1.48240677]
[1729480661692,5.3,168.87,168.77,1.48240677]
[1729480661895,5.3,168.87,168.78,1.48240677]
[1729480662093,5.3,168.87,168.75,7.8904]
[1729480662297,2.9618,168.85,168.77,2.9629]
[1729480662499,5.3,168.87,168.77,2.9629]
[1729480662699,2.9616,168.85,168.77,2.9629]
[1729480663195,5.3,168.87,168.78,1.48227923]
[1729480663398,5.3,168.87,168.79,1.48227923]
[1729480663596,5.3,168.87,168.75,7.8904]
[1729480663804,5.3,168.87,168.76,5.33616279]
[1729480664004,5.3,168.87,168.77,2.96453488]
[1729480664203,5.3,168.87,168.78,2.96453488]
[1729480664404,5.3,168.87,168.79,1.48226744]
[1729480664605,5.3,168.87,168.75,7.8904]
[1729480664904,5.3,168.87,168.76,5.33615707]
[1729480665104,2.9618,168.85,168.79,2.9626]
[1729480665306,2.9618,168.85,168.79,8.2626]
[1729480666408,2.9618,168.85,168.8,1.48221198]
[1729480666607,64.0,168.93,168.79,8.2626]
[1729480666608,2.9613,168.87,168.81,2.9623]
[1729480666797,5.3,168.9,168.81,2.92905552]
[1729480667004,5.3,168.9,168.79,5.3]
[1729480667206,2.9613,168.87,168.8,4.4446267]
[1729480667405,2.9613,168.87,168.81,1.3517]
[1729480667606,2.9613,168.87,168.81,4.31306019]
[1729480667804,2.9613,168.87,168.81,1.3517]
[1729480668297,2.9613,168.87,168.81,4.28757211]
[1729480668497,5.3,168.9,168.81,1.3517]
[1729480668702,2.9614,168.86,168.81,1.3517]
[1729480669010,2.9614,168.86,168.81,4.3592944]
[1729480670102,2.9614,168.86,168.82,1.2853]
[1729480670305,5.3,168.9,168.82,1.2853]
[1729480670497,2.9613,168.87,168.82,1.2853]
[1729480672911,5.3,168.9,168.82,1.2853]
[1729480673204,2.9614,168.86,168.82,1.2853]
[1729480673405,5.3,168.9,168.82,1.2853]
[1729480673610,2.9613,168.87,168.82,1.2853]
[1729480674300,5.3,168.9,168.82,1.2853]
[1729480676006,2.9614,168.87,168.82,1.2853]
[1729480678410,8.2608,168.9,168.83,2.9618]
[1729480678613,5.3,168.9,168.83,2.9618]
[1729480679518,2.961,168.89,168.82,4.2474]
[1729480681713,5.22,168.92,168.82,4.2474]
[1729480681714,2.9611,168.88,168.82,4.2474]
[1729480683614,2.9611,168.88,168.82,1.2853]
[1729480684115,2.9611,168.88,168.82,4.2474]
[1729480684317,5.22,168.92,168.82,1.2853]
[1729480685916,9.45521575,168.95,168.82,1.2853]
[1729480686116,6.2287,168.95,168.83,5.22]
[1729480686313,6.2287,168.95,168.83,7.95516763]
[1729480686614,5.22,168.95,168.84,2.96383246]
[1729480686813,5.22,168.95,168.85,1.48196763]
[1729480687018,2.9602,168.93,168.86,4.44336763]
[1729480687213,2.9602,168.93,168.86,2.9614]
[1729480687415,5.22,168.95,168.86,2.9614]
[1729480687617,2.9604,168.92,168.86,2.9614]
[1729480689022,2.9606,168.91,168.86,2.9614]
[1729480690018,2.9609,168.9,168.84,2.9616]
[1729480690328,2.9609,168.9,168.85,1.48176862]
[1729480690619,5.22,168.96,168.84,2.9616]
[1729480690818,2.9609,168.89,168.85,1.48177032]
[1729480691020,2.9609,168.89,168.84,2.9616]
[1729480691216,2.9609,168.89,168.85,1.48179353]
[1729480691413,2.9609,168.89,168.85,2.9616]
[1729480695320,5.22,168.96,168.83,6.4732]
[1729480695520,2.9615,168.86,168.84,1.48179643]
[1729480695716,2.9615,168.86,168.83,6.4732]
[1729480695921,1.0086,168.95,168.83,6.4732]
[1729480696225,1.0086,168.95,168.83,9.4351]
[1729480696831,2.9612,168.88,168.83,9.4351]
[1729480697025,1.0086,168.95,168.83,9.4351]
[1729480697221,2.9605,168.92,168.82,4.2474]
[1729480697424,5.22,168.92,168.82,1.2853]
[1729480697728,2.9609,168.89,168.82,1.2853]
[1729480697921,5.22,168.92,168.82,1.2853]
[1729480698322,2.9616,168.85,168.81,9.5792944]
[1729480698722,2.9616,168.85,168.81,3.0075944]
[1729480698927,2.9616,168.85,168.8,5.22]
[1729480699125,5.22,168.88,168.75,4.2649]
[1729480699325,5.22,168.87,168.76,8.18479958]
[1729480699522,5.22,168.87,168.77,1.48239979]
[1729480699723,5.22,168.87,168.76,5.22]
[1729480699926,5.22,168.87,168.77,1.48245948]
[1729480700133,5.22,168.87,168.76,5.22]
[1729480700727,5.22,168.87,168.77,1.48247639]
[1729480700936,5.22,168.87,168.76,5.22]
[1729480701320,5.22,168.87,168.77,2.964699]
[1729480701530,5.22,168.87,168.79,2.9626]
[1729480701728,5.22,168.88,168.79,2.9626]
[1729480703028,2.9615,168.86,168.8,1.48223004]
[1729480703234,2.9615,168.86,168.79,2.9626]
[1729480703528,5.22,168.88,168.8,4.44452792]
[1729480703733,5.22,168.88,168.8,2.9623]
[1729480704135,2.9614,168.86,168.8,2.9623]
[1729480704328,5.22,168.88,168.8,5.22]
[1729480704629,2.9613,168.87,168.8,5.22]
[1729480704929,5.22,168.91,168.83,2.9619]
[1729480705134,5.22,168.93,168.83,5.88863506]
[1729480705531,2.9607,168.9,168.83,5.88863506]
[1729480705828,5.22,168.96,168.86,2.9613]
[1729480706529,2.9602,168.94,168.87,2.9612]
[1729480707227,5.22,168.98,168.88,1.2592]
[1729480707424,2.9595,168.97,168.9,2.9606]
[1729480707827,69.22,169.0,168.89,1.3035]
[1729480708028,2.9598,168.96,168.89,1.3035]
[1729480708933,2.9598,168.96,168.89,4.2644]
[1729480709523,64.0,169.0,168.89,1.3035]
[1729480709824,2.9595,168.97,168.89,1.3035]
[1729480710029,2.9595,168.97,168.89,2.5887]
[1729480710832,2.9595,168.97,168.91,2.9606]
[1729480712334,2.9593,168.98,168.92,7.9203]
[1729480713542,123.79097585,169.02,168.92,4.96]
[1729480713732,1.0064,169.08,168.92,4.96]
[1729480713937,4.96,169.07,168.92,4.96]